bitfinex/quotes_BTCUSD_20250508
["timestamp","ask_amount","ask_price","bid_price","bid_amount"]
[1746741564183,0.21228514,102870.0,102860.0,1.0056109]
[1746741564408,0.22200586,102870.0,102860.0,1.01533228]
[1746741564622,0.22200586,102870.0,102860.0,1.005611]
[1746741564926,0.22200586,102870.0,102860.0,0.99588943]
[1746741565159,0.22200586,102870.0,102860.0,1.00561109]
[1746741565387,0.31927278,102870.0,102860.0,0.78200668]
[1746741565602,0.33537278,102870.0,102860.0,0.78200668]
[1746741568647,0.33537278,102870.0,102860.0,0.03367362]
[1746741568861,0.2041608,102860.0,102850.0,0.34]
[1746741569096,0.2041608,102860.0,102850.0,0.40833306]
[1746741569333,0.20418064,102850.0,102840.0,0.34807861]
[1746741569564,0.20418064,102850.0,102840.0,0.41033306]
[1746741569565,0.30484756,102850.0,102840.0,0.41033306]
[1746741569800,0.33654756,102850.0,102840.0,0.41033306]
[1746741570017,0.33654756,102850.0,102840.0,0.75033306]
[1746741570242,0.33654756,102850.0,102840.0,0.41033306]
[1746741570694,0.33654756,102850.0,102840.0,0.41333306]
[1746741570920,0.33654756,102850.0,102840.0,0.41033306]
[1746741571134,0.33654756,102850.0,102840.0,0.41133306]
[1746741571604,0.35108841,102850.0,102840.0,0.005]
[1746741572023,0.33654756,102850.0,102840.0,0.03664769]
[1746741572252,0.33654756,102850.0,102840.0,0.0019]
[1746741574234,0.34389349,102850.0,102840.0,0.0019]
[1746741574645,0.2355005,102840.0,102830.0,0.40833306]
[1746741574874,0.33616742,102840.0,102830.0,0.40833306]
[1746741575362,0.21952035,102830.0,102820.0,0.002]
[1746741575591,0.31461177,102830.0,102820.0,0.62429901]
[1746741575811,0.21394485,102830.0,102820.0,0.66210302]
[1746741575953,0.01944909,102830.0,102820.0,0.68155344]
[1746741576158,0.01944872,102830.0,102820.0,0.68155344]
[1746741576424,0.01944815,102830.0,102820.0,0.68155344]
[1746741576741,0.01944815,102830.0,102820.0,0.81934802]
[1746741576942,0.02917246,102830.0,102820.0,0.81934802]
[1746741577216,0.00972393,102830.0,102820.0,0.81934802]
[1746741577447,0.002,102850.0,102840.0,0.20420059]
[1746741577680,0.21172014,102870.0,102860.0,0.34]
[1746741577905,0.31238706,102870.0,102860.0,0.74833306]
[1746741578772,0.32768706,102870.0,102860.0,0.34]
[1746741578998,0.32768706,102870.0,102860.0,0.40833306]
[1746741579773,0.33268706,102870.0,102860.0,0.40833306]
[1746741579936,0.33268706,102870.0,102850.0,0.40833306]
[1746741579937,0.22585552,102860.0,102850.0,0.40833306]
[1746741580140,0.32652244,102860.0,102850.0,0.40833306]
[1746741580358,0.21390306,102850.0,102840.0,0.40847706]
[1746741581039,0.21390306,102850.0,102840.0,0.74847706]
[1746741581769,0.34496998,102850.0,102840.0,0.75455592]
[1746741583538,0.34496998,102850.0,102840.0,0.76357009]
[1746741585986,0.34496998,102850.0,102840.0,0.37468405]
[1746741585987,0.31456998,102850.0,102840.0,0.37468405]
[1746741586155,0.20717737,102860.0,102850.0,0.19445794]
[1746741586361,0.02916678,102850.0,102840.0,0.98721657]
[1746741586556,0.02916678,102850.0,102840.0,1.39330208]
[1746741586878,0.31456586,102860.0,102850.0,0.21390315]
[1746741587070,0.2236252,102850.0,102840.0,0.97524659]
[1746741587301,0.2236252,102850.0,102840.0,1.37524659]
[1746741587493,0.2236252,102850.0,102840.0,1.40371646]
[1746741587721,0.2236252,102850.0,102840.0,1.44267001]
[1746741587877,0.23334809,102850.0,102840.0,1.45239338]
[1746741588122,0.23334809,102850.0,102840.0,1.44267001]
[1746741588321,0.23334809,102850.0,102840.0,1.04467001]
[1746741588515,0.23334809,102850.0,102840.0,0.77234596]
[1746741588727,0.21390353,102850.0,102840.0,1.16332254]
[1746741589053,0.21390353,102850.0,102840.0,1.15755592]
[1746741589208,0.20418083,102850.0,102840.0,0.75755592]
[1746741589608,0.20418083,102850.0,102840.0,0.76727976]
[1746741590045,0.29512486,102850.0,102840.0,0.75755592]
[1746741590251,0.29512486,102850.0,102840.0,0.97148016]
[1746741590446,0.29512486,102850.0,102840.0,0.96175651]
[1746741590676,0.29512486,102850.0,102840.0,0.75755592]
[1746741590855,0.31172486,102850.0,102840.0,0.76727976]
[1746741591062,0.31172486,102850.0,102840.0,0.78603028]
[1746741591257,0.31172486,102850.0,102840.0,0.99700596]
[1746741591458,0.31172486,102850.0,102840.0,0.77335788]
[1746741591663,0.28132455,102850.0,102840.0,0.77335788]
[1746741591909,0.28132455,102850.0,102840.0,0.78308172]
[1746741592080,0.28132455,102850.0,102840.0,0.79280546]
[1746741592577,0.28132455,102850.0,102840.0,0.43335788]
[1746741592578,0.29772455,102850.0,102840.0,0.43335788]
[1746741593230,0.29772455,102850.0,102840.0,0.4265827]
[1746741594757,0.28132455,102850.0,102840.0,0.4265827]
[1746741594935,0.11038953,102850.0,102840.0,0.98050657]
[1746741595175,0.00972233,102850.0,102840.0,1.39856281]
[1746741595375,0.02916688,102850.0,102840.0,1.40533799]
[1746741595958,0.01272147,102860.0,102850.0,0.22362577]
[1746741596130,0.13283124,102860.0,102850.0,0.98168106]
[1746741596326,0.04188608,102860.0,102850.0,0.98168106]
[1746741596567,0.05160793,102860.0,102850.0,0.98775992]
[1746741596887,0.04860793,102860.0,102850.0,0.98775992]
[1746741597098,0.04860793,102860.0,102850.0,0.9945351]
[1746741597230,0.04860793,102860.0,102850.0,1.00356188]
[1746741597947,0.02916423,102860.0,102850.0,1.00356188]
[1746741599070,0.01944266,102860.0,102850.0,1.00356188]
[1746741599501,0.02916423,102860.0,102850.0,1.00356188]
[1746741600157,0.034,102870.0,102860.0,0.21388227]
[1746741600391,0.02144078,102870.0,102860.0,0.63193662]
[1746741600617,0.002,102870.0,102860.0,0.97801548]
[1746741601038,0.002,102870.0,102860.0,1.32650448]
[1746741601247,0.23530226,102870.0,102860.0,0.97801576]
[1746741601479,0.34852859,102870.0,102860.0,0.34607886]
[1746741601697,0.34852859,102870.0,102860.0,0.00607886]
[1746741601698,0.4290367,102870.0,102860.0,0.00607886]
[1746741601930,0.4290367,102870.0,102860.0,0.01285404]
[1746741602140,0.44357755,102870.0,102860.0,0.01285404]
[1746741602367,0.44357755,102870.0,102860.0,0.00607886]
[1746741603192,0.44057755,102870.0,102860.0,0.00607886]
[1746741603413,0.44057755,102870.0,102850.0,0.04351603]
[1746741603626,0.33672772,102860.0,102850.0,0.05255829]
[1746741603843,0.03584342,102860.0,102850.0,0.49613852]
[1746741604053,0.23028246,102860.0,102850.0,0.68087423]
[1746741604260,0.21388246,102860.0,102850.0,1.00142892]
[1746741604463,0.21388246,102860.0,102850.0,1.02087423]
[1746741604710,0.02916537,102860.0,102850.0,0.63873391]
[1746741604918,0.22360441,102860.0,102850.0,0.63001159]
[1746741605366,0.22360441,102860.0,102850.0,0.6397341]
[1746741605564,0.01944342,102860.0,102850.0,0.65917885]
[1746741605764,0.02916527,102860.0,102850.0,0.66117828]
[1746741606068,0.03888722,102860.0,102850.0,0.66117828]
[1746741606283,0.03888722,102860.0,102850.0,0.64945605]
[1746741606505,0.002,102870.0,102860.0,0.21388218]
[1746741606711,0.01944314,102860.0,102850.0,0.27035592]
[1746741606910,0.03888608,102860.0,102850.0,1.04785642]
[1746741607150,0.34879618,102860.0,102850.0,0.00977518]
[1746741607338,0.34684938,102860.0,102850.0,0.00977518]
[1746741607537,0.34684938,102860.0,102850.0,0.003]
[1746741608219,0.34684938,102860.0,102850.0,0.001]
[1746741608964,0.34684938,102860.0,102850.0,0.00176205]
[1746741609606,0.31454938,102860.0,102850.0,0.75009511]
[1746741609845,0.30482772,102860.0,102850.0,0.75209511]
[1746741610273,0.2041608,102860.0,102850.0,0.75209511]
[1746741610479,0.00972147,102860.0,102850.0,0.97572106]
[1746741610687,0.23332512,102860.0,102850.0,0.98250416]
[1746741610887,0.23332512,102860.0,102850.0,0.99222658]
[1746741611137,0.02916423,102860.0,102850.0,1.00194881]
[1746741611342,0.24304698,102860.0,102850.0,0.99222658]
[1746741611557,0.23332579,102860.0,102850.0,0.98250416]
[1746741611767,0.21388275,102860.0,102850.0,0.97278174]
[1746741612174,0.20416099,102860.0,102850.0,0.97278184]
[1746741613027,0.19443904,102860.0,102850.0,0.75887821]
[1746741614078,0.19443904,102860.0,102850.0,0.7686011]
[1746741614313,0.19443904,102860.0,102850.0,0.75887821]
[1746741614537,0.20943904,102860.0,102850.0,0.75887821]
[1746741615911,0.22583904,102860.0,102850.0,0.35054515]
[1746741616137,0.32650596,102860.0,102850.0,0.01054515]
[1746741616800,0.32650596,102860.0,102850.0,0.00376205]
[1746741617242,0.34104681,102860.0,102850.0,0.00376205]
[1746741617478,0.80922329,102860.0,102850.0,0.00376205]
[1746741617726,1.09815455,102850.0,102840.0,0.002144]
[1746741617949,1.69466264,102850.0,102840.0,0.002144]
[1746741618172,1.31363231,102850.0,102840.0,0.002144]
[1746741618412,1.41429923,102850.0,102840.0,0.002144]
[1746741618654,1.41429923,102850.0,102820.0,0.002]
[1746741618655,0.24534466,102830.0,102820.0,0.002]
[1746741618863,0.24534466,102830.0,102800.0,0.06897023]
[1746741618864,0.25992714,102810.0,102800.0,0.06897023]
[1746741619083,0.81437292,102810.0,102800.0,0.06897023]
[1746741619301,0.81437292,102810.0,102800.0,0.05990964]
[1746741620154,0.81437292,102810.0,102800.0,0.02770964]
[1746741620155,1.67989777,102810.0,102800.0,0.02770964]
[1746741620375,1.63289777,102810.0,102800.0,0.01259028]
[1746741621280,0.05,102800.0,102790.0,0.07253223]
[1746741621512,0.93993365,102800.0,102790.0,0.07267637]
[1746741621750,1.2925277,102800.0,102790.0,0.04047637]
[1746741621983,0.63544068,102790.0,102780.0,0.002]
[1746741622207,1.55277372,102790.0,102780.0,0.002]
[1746741622452,1.14444066,102790.0,102780.0,0.002]
[1746741622693,1.55277372,102790.0,102780.0,0.002]
[1746741623376,1.55977372,102790.0,102780.0,0.003]
[1746741624546,1.56577372,102790.0,102780.0,0.004]
[1746741624770,1.55277372,102790.0,102780.0,0.002]
[1746741625012,1.56077372,102790.0,102780.0,0.003]
[1746741625228,1.56777372,102790.0,102780.0,0.004]
[1746741625923,1.34191243,102790.0,102780.0,0.004]
[1746741626193,1.43563243,102790.0,102780.0,0.004]
[1746741626414,0.88711243,102790.0,102780.0,0.004]
[1746741626632,1.33115243,102790.0,102780.0,0.004]
[1746741627292,1.35655243,102790.0,102780.0,0.004]
[1746741627525,1.46641935,102790.0,102780.0,0.004]
[1746741627744,1.90641935,102790.0,102780.0,0.004]
[1746741628204,1.79641935,102790.0,102780.0,0.00385085]
[1746741628870,1.79575243,102790.0,102780.0,0.00385085]
[1746741629505,1.74575243,102790.0,102780.0,0.00385085]
[1746741629716,1.79575243,102790.0,102780.0,0.00385085]
[1746741630434,1.71207243,102790.0,102780.0,0.00385085]
[1746741630651,1.79643243,102790.0,102780.0,0.00385085]
[1746741631090,1.69287243,102790.0,102780.0,0.00385085]
[1746741631318,1.13055736,102790.0,102780.0,0.00385085]
[1746741631541,1.02245651,102790.0,102780.0,0.00385085]
[1746741631772,0.67032675,102790.0,102780.0,0.00385085]
[1746741631991,0.76384675,102790.0,102780.0,0.00385085]
[1746741632687,0.67032675,102790.0,102780.0,0.00385085]
[1746741632909,0.76380675,102790.0,102780.0,0.00385085]
[1746741633368,0.7783476,102790.0,102780.0,0.00385085]
[1746741633612,0.6848676,102790.0,102780.0,0.00385085]
[1746741633871,0.7783476,102790.0,102780.0,0.02015085]
[1746741634527,0.7783476,102790.0,102780.0,0.00385085]
[1746741635696,0.87563761,102790.0,102780.0,0.00385085]
[1746741635905,1.42824244,102790.0,102780.0,0.00385085]
[1746741636088,1.44394244,102790.0,102780.0,0.00385085]
[1746741636545,1.89314244,102790.0,102780.0,0.00385085]
[1746741636751,1.90314244,102790.0,102780.0,0.00385085]
[1746741637164,1.85314244,102790.0,102780.0,0.00385085]
[1746741638995,1.79314244,102790.0,102780.0,0.00385085]
[1746741639203,0.62976958,102770.0,102760.0,0.002]
[1746741639427,1.28304133,102770.0,102760.0,0.00214441]
[1746741640357,1.34064452,102770.0,102760.0,0.00214441]
[1746741640768,1.36571219,102770.0,102760.0,0.00214441]
[1746741640970,1.29064452,102770.0,102760.0,0.00214441]
[1746741641203,0.6627365,102770.0,102760.0,0.00214441]
[1746741641661,0.3227365,102770.0,102760.0,0.00214441]
[1746741643299,0.33727735,102770.0,102760.0,0.03444441]
[1746741643505,0.33727735,102770.0,102760.0,0.0405296]
[1746741643706,0.3227365,102770.0,102760.0,0.0405296]
[1746741643926,0.3227365,102770.0,102760.0,0.04954203]
[1746741644139,0.3227365,102770.0,102760.0,0.58417029]
[1746741644381,0.3227365,102770.0,102760.0,0.38954203]
[1746741645634,0.31176509,102770.0,102760.0,0.38954203]
[1746741647320,0.31176509,102770.0,102760.0,0.38828756]
[1746741647900,0.31176509,102770.0,102760.0,0.58291582]
[1746741648119,0.31176509,102770.0,102760.0,0.60237835]
[1746741648429,0.3020351,102770.0,102760.0,0.38828756]
[1746741650985,0.33122592,102770.0,102760.0,0.38828756]
[1746741651186,0.31176566,102770.0,102760.0,0.38828756]
[1746741652077,0.30776566,102770.0,102760.0,0.38828756]
[1746741652294,0.30876566,102770.0,102760.0,0.38828756]
[1746741652719,0.30476566,102770.0,102760.0,0.38828756]
[1746741653127,0.30576566,102770.0,102760.0,0.38828756]
[1746741656390,0.30576566,102770.0,102760.0,0.24900495]
[1746741657228,0.21411125,102750.0,102740.0,0.02722138]
[1746741657469,0.21411125,102750.0,102740.0,0.03695459]
[1746741657687,0.21411125,102750.0,102740.0,0.02722138]
[1746741657901,0.30504629,102750.0,102740.0,0.02722138]
[1746741658121,0.30504629,102750.0,102740.0,0.002]
[1746741658984,0.30504629,102750.0,102740.0,0.005]
[1746741659646,0.30604629,102750.0,102740.0,0.002]
[1746741659871,0.30704629,102750.0,102740.0,0.002]
[1746741660379,0.74583614,102750.0,102740.0,0.002]
[1746741660593,1.10163614,102750.0,102740.0,0.002]
[1746741660810,1.12892931,102750.0,102740.0,0.002]
[1746741661917,1.13439777,102750.0,102740.0,0.002]
[1746741662105,1.14539777,102750.0,102740.0,0.004]
[1746741662322,1.24606469,102750.0,102740.0,0.004]
[1746741662527,1.21877152,102750.0,102740.0,0.004]
[1746741663368,1.5873536,102750.0,102740.0,0.004]
[1746741663573,1.61460825,102750.0,102740.0,0.004]
[1746741663785,1.56460825,102750.0,102740.0,0.004]
[1746741663994,1.15535925,102750.0,102740.0,0.004]
[1746741664648,1.1281046,102750.0,102740.0,0.004]
[1746741664855,1.5373536,102750.0,102740.0,0.004]
[1746741665070,1.1281046,102750.0,102740.0,0.004]
[1746741665485,1.22877152,102750.0,102740.0,0.004]
[1746741665930,1.1023046,102750.0,102740.0,0.004]
[1746741666172,0.3380556,102750.0,102740.0,0.004]
[1746741666414,0.4303756,102750.0,102740.0,0.004]
[1746741666884,0.8713246,102750.0,102740.0,0.004]
[1746741667331,0.89855981,102750.0,102740.0,0.004]
[1746741667548,0.8713246,102750.0,102740.0,0.004]
[1746741668023,1.69710222,102750.0,102740.0,0.004]
[1746741668250,1.74710222,102750.0,102740.0,0.004]
[1746741668697,1.70702222,102750.0,102740.0,0.004]
[1746741668910,1.79702222,102750.0,102740.0,0.004]
[1746741669114,1.69702222,102750.0,102740.0,0.004]
[1746741669329,1.79702222,102750.0,102740.0,0.004]
[1746741669606,1.74702222,102750.0,102740.0,0.004]
[1746741669851,1.79702222,102750.0,102740.0,0.004]
[1746741670781,1.74702222,102750.0,102740.0,0.004]
[1746741671426,1.73602222,102750.0,102740.0,0.002]
[1746741671872,1.65878222,102750.0,102740.0,0.004]
[1746741672085,1.75090222,102750.0,102740.0,0.003]
[1746741672297,1.75390222,102750.0,102740.0,0.003]
[1746741672507,2.11650222,102750.0,102740.0,0.004]
[1746741672928,0.60409378,102730.0,102720.0,0.002]
[1746741673139,1.1140097,102730.0,102720.0,0.002]
[1746741673353,1.14118903,102730.0,102720.0,0.002]
[1746741673552,1.1140097,102730.0,102720.0,0.002]
[1746741674233,1.11415363,102730.0,102720.0,0.002]
[1746741674448,1.11815363,102730.0,102720.0,0.003]
[1746741675091,1.22582055,102730.0,102720.0,0.004]
[1746741675303,1.12515363,102730.0,102720.0,0.004]
[1746741677900,0.22873548,102710.0,102700.0,0.002]
[1746741678129,0.4213224,102710.0,102700.0,0.002]
[1746741678357,0.7613224,102710.0,102700.0,0.002]
[1746741678571,1.36283832,102710.0,102700.0,0.002]
[1746741678795,0.95358932,102710.0,102700.0,0.002]
[1746741679009,1.36283832,102710.0,102700.0,0.002]
[1746741679446,1.38801675,102710.0,102700.0,0.002]
[1746741679879,1.39001675,102710.0,102700.0,0.003]
[1746741680303,0.55423635,102690.0,102680.0,0.002]
[1746741680552,1.02012412,102690.0,102680.0,0.002]
[1746741680738,1.11196412,102690.0,102680.0,0.0185]
[1746741680935,1.11196412,102690.0,102680.0,0.034]
[1746741681171,0.77196412,102690.0,102680.0,0.034]
[1746741681376,0.75742327,102690.0,102680.0,0.034]
[1746741681529,0.66658327,102690.0,102680.0,0.03647875]
[1746741682073,0.66758327,102690.0,102680.0,0.03647875]
[1746741684907,0.66758327,102690.0,102680.0,0.44572775]
[1746741685110,0.55717821,102690.0,102680.0,0.65024654]
[1746741685293,0.5863912,102690.0,102680.0,0.99024654]
[1746741685493,0.57665325,102690.0,102680.0,0.59073634]
[1746741685692,0.57665325,102690.0,102680.0,0.99998534]
[1746741685894,0.57665325,102690.0,102680.0,1.00972405]
[1746741686114,0.5863911,102690.0,102680.0,0.99998534]
[1746741686516,0.66758336,102690.0,102680.0,0.80086498]
[1746741686716,0.66758336,102690.0,102680.0,0.38552742]
[1746741687362,0.66758336,102690.0,102680.0,0.04552742]
[1746741688849,0.31690336,102690.0,102680.0,0.04552742]
[1746741689051,0.31690336,102690.0,102680.0,0.03647875]
[1746741689272,0.31690336,102690.0,102680.0,0.02097875]
[1746741689935,0.31690336,102690.0,102680.0,0.03002742]
[1746741690629,0.31690336,102690.0,102680.0,0.02097875]
[1746741691919,0.33144421,102690.0,102680.0,0.00447875]
[1746741692157,0.74069321,102690.0,102680.0,0.00447875]
[1746741692400,0.84136013,102690.0,102680.0,0.00447875]
[1746741692626,0.43211113,102690.0,102680.0,0.00447875]
[1746741692833,0.84136013,102690.0,102680.0,0.00447875]
[1746741693042,1.18136013,102690.0,102680.0,0.00447875]
[1746741694125,0.67144421,102690.0,102680.0,0.00447875]
[1746741694551,0.67044421,102690.0,102680.0,0.00447875]
[1746741694745,0.67044421,102690.0,102680.0,0.00247875]
[1746741695170,0.67144421,102690.0,102680.0,0.00247875]
[1746741695381,0.67863443,102690.0,102680.0,0.00247875]
[1746741697920,1.21925035,102690.0,102680.0,0.00247875]
[1746741698132,0.81305837,102690.0,102680.0,0.00247875]
[1746741698336,0.69679145,102690.0,102680.0,0.00247875]
[1746741699455,0.67863443,102690.0,102680.0,0.00247875]
[1746741699675,0.33863443,102690.0,102680.0,0.00247875]
[1746741699887,0.33863443,102690.0,102680.0,0.01897875]
[1746741701105,0.35679098,102690.0,102680.0,0.01897875]
[1746741702166,0.34225013,102690.0,102680.0,0.01897875]
[1746741702367,0.33505991,102690.0,102680.0,0.63840764]
[1746741702587,0.12214243,102690.0,102680.0,0.99788553]
[1746741702793,0.32664131,102690.0,102680.0,1.00762424]
[1746741703001,0.23571243,102690.0,102680.0,1.01736294]
[1746741703217,0.23571243,102690.0,102680.0,0.78362775]
[1746741703218,0.22597477,102690.0,102680.0,0.78362775]
[1746741703427,0.21523692,102690.0,102680.0,0.79272554]
[1746741703630,0.21623692,102690.0,102680.0,0.41834679]
[1746741704271,0.21623692,102690.0,102680.0,0.64234299]
[1746741704487,0.21523692,102690.0,102680.0,0.63260438]
[1746741704709,0.03021346,102690.0,102680.0,0.63260438]
[1746741704935,0.23571177,102690.0,102680.0,0.63660438]
[1746741705413,0.23571177,102690.0,102680.0,0.62686567]
[1746741705624,0.21623673,102690.0,102680.0,0.43208578]
[1746741706127,0.21623673,102690.0,102680.0,0.01309779]
[1746741706128,0.30716589,102690.0,102680.0,0.01309779]
[1746741707171,0.19477989,102680.0,102670.0,0.016]
[1746741707374,0.19479887,102670.0,102660.0,0.03972764]
[1746741707564,0.29546579,102670.0,102660.0,0.03972764]
[1746741710291,0.29546579,102670.0,102660.0,0.37972764]
[1746741710707,0.29646579,102670.0,102660.0,0.38072764]
[1746741711102,0.29746579,102670.0,102660.0,0.38072764]
[1746741711888,0.29746579,102670.0,102660.0,0.78997664]
[1746741712090,0.30720544,102670.0,102660.0,0.80587664]
[1746741712315,0.29746579,102670.0,102660.0,0.39662764]
[1746741712874,0.29746579,102670.0,102660.0,0.80587664]
[1746741713753,0.29678409,102670.0,102660.0,0.80587664]
[1746741715795,0.002,102670.0,102660.0,1.00069448]
[1746741716028,0.02147883,102670.0,102660.0,1.439165]
[1746741716422,0.22601754,102670.0,102660.0,0.61092678]
[1746741716609,0.22601754,102670.0,102660.0,0.60118627]
[1746741716810,0.22601754,102670.0,102660.0,0.61092678]
[1746741717119,0.23575748,102670.0,102660.0,1.02991619]
[1746741717769,0.31694557,102670.0,102660.0,0.77397664]
[1746741717985,0.31694557,102670.0,102660.0,0.36472764]
[1746741719090,0.31694557,102670.0,102660.0,0.77397664]
[1746741719296,0.31694557,102670.0,102660.0,0.36472764]
[1746741719504,0.31694557,102670.0,102660.0,0.77397664]
[1746741720038,0.31694557,102670.0,102660.0,0.78308448]
[1746741721363,0.31694557,102670.0,102660.0,0.82402537]
[1746741721541,0.30720573,102670.0,102660.0,0.38913548]
[1746741721743,0.30720573,102670.0,102660.0,0.78308448]
[1746741722361,0.30720573,102670.0,102660.0,0.37383548]
[1746741723185,0.30720573,102670.0,102660.0,0.78308448]
[1746741723591,0.30720573,102670.0,102660.0,0.40543548]
[1746741723799,0.30720573,102670.0,102660.0,1.00950232]
[1746741724003,0.30720573,102670.0,102660.0,0.81468448]
[1746741724200,0.30720573,102670.0,102660.0,0.79948448]
[1746741725512,0.29746579,102670.0,102660.0,0.79948448]
[1746741725897,0.29746579,102670.0,102660.0,0.39023548]
[1746741726094,0.29746579,102670.0,102660.0,0.79948448]
[1746741727339,0.29746579,102670.0,102660.0,0.78308448]
[1746741727985,0.29746579,102670.0,102660.0,0.37383548]
[1746741728210,0.29746579,102670.0,102660.0,0.78308448]
[1746741728435,0.29746579,102670.0,102660.0,0.37383548]
[1746741728658,0.29746579,102670.0,102660.0,0.78308448]
[1746741728866,0.29746579,102670.0,102660.0,0.39023548]
[1746741729097,0.29746579,102670.0,102660.0,0.78308448]
[1746741730376,0.19679887,102670.0,102660.0,1.01378343]
[1746741730616,0.19679887,102670.0,102660.0,1.44847265]
[1746741730617,0.01173918,102670.0,102660.0,1.44847265]
[1746741730823,0.01173908,102670.0,102660.0,1.44847265]
[1746741731091,0.02147845,102670.0,102660.0,1.44847265]
[1746741731526,0.21627732,102670.0,102660.0,1.22443348]
[1746741731746,0.316945,102670.0,102660.0,0.03383548]
[1746741731956,0.332845,102670.0,102660.0,0.03383548]
[1746741732170,0.21627808,102670.0,102660.0,0.44308448]
[1746741732394,0.01173918,102670.0,102660.0,1.45651354]
[1746741732603,0.02147855,102670.0,102660.0,1.45651354]
[1746741732808,0.23475663,102670.0,102660.0,1.53557012]
[1746741733026,0.316945,102670.0,102660.0,0.87288128]
[1746741733236,0.316945,102670.0,102660.0,0.46363228]
[1746741733444,0.315945,102670.0,102660.0,0.87288128]
[1746741734060,0.316945,102670.0,102660.0,0.87288128]
[1746741734480,0.02147864,102670.0,102660.0,1.54651034]
[1746741734685,0.03121829,102670.0,102660.0,1.54651053]
[1746741734889,0.03121829,102670.0,102660.0,1.53677031]
[1746741735097,0.02147864,102670.0,102660.0,1.54651072]
[1746741735311,0.02147864,102670.0,102660.0,1.55625094]
[1746741735538,0.0312182,102670.0,102660.0,1.55625094]
[1746741735769,0.23575673,102670.0,102660.0,1.54651072]
[1746741735983,0.04095786,102670.0,102660.0,1.55625094]
[1746741736195,0.23575739,102670.0,102660.0,1.45671373]
[1746741736648,0.31694557,102670.0,102660.0,0.37383548]
[1746741736884,0.31694557,102670.0,102660.0,1.43873262]
[1746741736885,0.02147883,102670.0,102660.0,1.43873262]
[1746741737104,0.3169451,102670.0,102660.0,0.78308448]
[1746741737566,0.01173927,102670.0,102660.0,1.43227284]
[1746741737792,0.01173927,102670.0,102660.0,1.44847284]
[1746741738013,0.02147864,102670.0,102660.0,1.44847284]
[1746741738230,0.03121829,102670.0,102660.0,1.44847284]
[1746741738675,0.01173927,102670.0,102660.0,1.44847284]
[1746741738881,0.03121838,102670.0,102660.0,1.44847284]
[1746741739117,0.04095813,102670.0,102660.0,1.44847284]
[1746741739323,0.23575767,102670.0,102660.0,1.01974311]
[1746741739532,0.21627856,102670.0,102660.0,0.80872537]
[1746741739744,0.01173946,102670.0,102660.0,1.02302451]
[1746741739956,0.002,102670.0,102660.0,1.55918065]
[1746741740382,0.21627808,102670.0,102660.0,0.78308448]
[1746741740591,0.02147864,102670.0,102660.0,1.84352169]
[1746741740799,0.002,102670.0,102660.0,1.95392883]
[1746741741012,0.02147873,102670.0,102660.0,1.95392883]
[1746741741228,0.01173908,102670.0,102660.0,1.95392883]
[1746741741438,0.21627818,102670.0,102660.0,0.80417355]
[1746741741653,0.21627818,102670.0,102660.0,0.44917355]
[1746741742070,0.3169451,102670.0,102660.0,0.53898521]
[1746741742289,0.02147873,102670.0,102660.0,1.15279294]
[1746741742556,0.03121829,102670.0,102660.0,1.55381446]
[1746741742794,0.01173956,102670.0,102660.0,1.55381446]
[1746741743039,0.01502597,102670.0,102660.0,1.55381446]
[1746741743519,0.21427818,102670.0,102660.0,0.46973621]
[1746741743783,0.21427818,102670.0,102660.0,0.87898521]
[1746741743992,0.3149451,102670.0,102660.0,0.46973621]
[1746741744212,0.3304451,102670.0,102660.0,0.46973621]
[1746741744439,0.3454451,102670.0,102660.0,0.10800857]
[1746741744872,0.3454451,102670.0,102660.0,0.51725757]
[1746741745088,0.3454451,102670.0,102660.0,0.10800857]
[1746741745572,0.3454451,102670.0,102660.0,0.1019195]
[1746741746739,0.35998595,102670.0,102660.0,0.1019195]
[1746741746960,1.19899495,102670.0,102660.0,0.1019195]
[1746741747186,1.37692346,102670.0,102660.0,0.07233893]
[1746741747432,1.38792346,102670.0,102660.0,0.002]
[1746741747648,0.23625854,102660.0,102650.0,0.0154776]
[1746741747870,0.74617446,102660.0,102650.0,0.0154776]
[1746741748094,0.84684138,102660.0,102650.0,0.0154776]
[1746741748323,0.33692546,102660.0,102650.0,0.0154776]
[1746741748542,0.76818905,102660.0,102650.0,0.0154776]
[1746741748755,0.35894005,102660.0,102650.0,0.0154776]
[1746741748962,0.85790905,102660.0,102650.0,0.0154776]
[1746741749176,0.44966005,102660.0,102650.0,0.0164776]
[1746741749599,0.4642009,102660.0,102650.0,0.0164776]
[1746741750452,0.8734499,102660.0,102650.0,0.0164776]
[1746741750683,0.4672009,102660.0,102650.0,0.0164776]
[1746741750898,0.8764499,102660.0,102650.0,0.0164776]
[1746741751110,0.97711682,102660.0,102650.0,0.0164776]
[1746741751323,0.56782782,102660.0,102650.0,0.0164776]
[1746741751534,0.8071609,102660.0,102650.0,0.0164776]
[1746741751761,1.6356589,102660.0,102650.0,0.0164776]
[1746741751983,1.6856589,102660.0,102650.0,0.0164776]
[1746741752215,1.6856589,102660.0,102650.0,0.01160487]
[1746741752436,0.64641932,102650.0,102640.0,0.0040252]
[1746741752657,0.64641932,102650.0,102620.0,0.002]
[1746741752658,0.97815144,102630.0,102620.0,0.002]
[1746741752870,2.14699836,102630.0,102620.0,0.002]
[1746741753084,2.56624736,102630.0,102620.0,0.002]
[1746741753314,2.62357472,102630.0,102620.0,0.002]
[1746741753533,1.62219264,102630.0,102620.0,0.002]
[1746741753785,1.19235604,102630.0,102620.0,0.002]
[1746741754004,0.56894422,102610.0,102600.0,0.032]
[1746741754218,0.70091114,102610.0,102600.0,0.032]
[1746741754436,0.66961114,102610.0,102600.0,0.032]
[1746741755572,0.33061114,102610.0,102600.0,0.032]
[1746741756322,0.33361114,102610.0,102600.0,0.032]
[1746741758281,0.31907029,102610.0,102600.0,0.441249]
[1746741758496,0.30932513,102610.0,102600.0,0.866098]
[1746741758712,0.30932513,102610.0,102600.0,0.032]
[1746741759422,0.32386598,102610.0,102600.0,0.032]
[1746741759667,0.30932513,102610.0,102600.0,0.441249]
[1746741759876,0.30932513,102610.0,102600.0,0.032]
[1746741760327,0.30932513,102610.0,102600.0,0.441249]
[1746741760768,0.30932513,102610.0,102600.0,0.032]
[1746741760996,0.30932513,102610.0,102600.0,0.441249]
[1746741761228,0.30932513,102610.0,102600.0,0.032]
[1746741761488,0.30932513,102610.0,102600.0,0.441249]
[1746741763086,0.30932513,102610.0,102600.0,0.032]
[1746741763798,0.30918319,102610.0,102600.0,0.032]
[1746741764237,0.30418319,102610.0,102600.0,0.032]
[1746741765597,0.33382404,102610.0,102600.0,0.032]
[1746741765823,0.34972404,102610.0,102600.0,0.032]
[1746741767199,0.33382404,102610.0,102600.0,0.032]
[1746741767423,0.31872404,102610.0,102600.0,0.032]
[1746741768080,0.33482404,102610.0,102600.0,0.032]